bitfinex/quotes_SOLUSD_20251103
["timestamp","ask_amount","ask_price","bid_price","bid_amount"]
[1762201054942,3.98446077,166.31,166.27,0.67]
[1762201055148,3.98446077,166.32,166.29,20.592]
[1762201055442,3.98446077,166.33,166.3,6.0132291]
[1762201055618,3.98446077,166.32,166.3,6.6832291]
[1762201055823,3.98446077,166.34,166.3,6.6832291]
[1762201056032,3.98446077,166.33,166.29,6.01348342]
[1762201056220,3.98446077,166.32,166.31,5.02247987]
[1762201056626,4.64446077,166.32,166.29,5.02247987]
[1762201056837,4.64446077,166.31,166.27,11.03667637]
[1762201057025,3.98446077,166.3,166.27,11.70667637]
[1762201057231,3.98446077,166.29,166.28,5.02247987]
[1762201057422,3.98446077,166.3,166.28,5.02247987]
[1762201057628,3.98446077,166.29,166.28,5.02247987]
[1762201057838,3.98446077,166.3,166.28,5.02247987]
[1762201058050,3.98446077,166.29,166.27,11.70667637]
[1762201058256,3.98446077,166.3,166.26,11.0370959]
[1762201058465,9.66694064,166.29,166.24,178.39133659]
[1762201058762,3.98446077,166.28,166.24,183.41381646]
[1762201058925,3.98446077,166.27,166.24,178.39133659]
[1762201059129,4.64446077,166.26,166.24,178.39133659]
[1762201059342,0.66,166.26,166.24,178.39133659]
[1762201059575,4.64446077,166.26,166.24,178.39133659]
[1762201059858,0.66,166.26,166.24,178.39133659]
[1762201060028,4.64446077,166.26,166.24,178.39133659]
[1762201060227,0.66,166.26,166.24,178.39133659]
[1762201060540,0.66,166.26,166.24,184.40664865]
[1762201060740,3.98446077,166.27,166.24,189.42912852]
[1762201060927,25.23646077,166.27,166.24,189.42912852]
[1762201061126,3.98446077,166.26,166.24,189.42912852]
[1762201061852,20.592,166.25,166.24,178.39133659]
[1762201062062,24.57646077,166.25,166.24,178.39133659]
[1762201063133,25.23646077,166.25,166.24,178.39133659]
[1762201063344,30.40110221,166.25,166.24,178.39133659]
[1762201063742,40.1899299,166.25,166.24,178.39133659]
[1762201064433,66.51837992,166.25,166.24,178.39133659]
[1762201064750,61.53572955,166.25,166.24,168.21929242]
[1762201064927,66.49852724,166.25,166.24,168.21929242]
[1762201065350,61.53572955,166.25,166.24,168.21929242]
[1762201065541,66.49852724,166.25,166.24,168.21929242]
[1762201065736,61.53572955,166.25,166.24,168.21929242]
[1762201067041,66.49852724,166.25,166.24,168.21929242]
[1762201067348,66.49852724,166.25,166.24,102.05270261]
[1762201067349,61.53572955,166.25,166.24,102.05270261]
[1762201068157,63.53572954,166.25,166.24,35.8861128]
[1762201068376,61.53572955,166.25,166.24,35.8861128]
[1762201068531,63.53572954,166.25,166.24,35.8861128]
[1762201069132,20.592,166.17,166.15,0.1]
[1762201069370,20.592,166.16,166.15,0.1]
[1762201070868,0.66,166.16,166.15,0.1]
[1762201071032,25.61447987,166.17,166.15,0.1]
[1762201071233,26.27447987,166.17,166.15,0.1]
[1762201071762,5.68247987,166.17,166.15,0.1]
[1762201072139,0.14216157,166.16,166.15,0.1]
[1762201072342,19.56866196,166.16,166.15,0.1]
[1762201072651,4.0973544,166.16,166.15,0.1]
[1762201072837,24.6893544,166.16,166.15,0.1]
[1762201073759,25.3493544,166.16,166.15,0.1]
[1762201073966,24.6893544,166.16,166.15,0.1]
[1762201075251,4.0973544,166.16,166.15,0.1]
[1762201075844,4.09039268,166.16,166.15,0.1]
[1762201076239,7.27169969,166.22,166.15,2.03280912]
[1762201076545,7.27169969,166.22,166.19,1.93280912]
[1762201076546,9.78882769,166.22,166.19,1.93280912]
[1762201076742,20.73416157,166.2,166.19,1.93280912]
[1762201077050,3.94677302,166.2,166.19,1.93280912]
[1762201077264,20.592,166.19,166.18,1.93280912]
[1762201077572,20.592,166.19,166.16,0.67]
[1762201077743,20.592,166.19,166.17,1.93280912]
[1762201078358,20.592,166.19,166.17,5.70076803]
[1762201079241,3.94576418,166.18,166.17,5.70076803]
[1762201079863,3.94389755,166.18,166.17,5.70076803]
[1762201080063,3.94389755,166.18,166.17,11.71870147]
[1762201080264,20.592,166.19,166.17,5.70076803]
[1762201080963,3.94594666,166.18,166.17,5.70076803]
[1762201081964,3.94594666,166.18,166.17,11.71870147]
[1762201082355,3.94594666,166.18,166.17,5.70076803]
[1762201083470,0.14216157,166.16,166.15,0.1]
[1762201083766,20.73416157,166.16,166.15,0.1]
[1762201083967,24.53794666,166.16,166.15,0.1]
[1762201085851,29.71087626,166.16,166.15,0.1]
[1762201086057,40.15970395,166.16,166.15,0.1]
[1762201086382,25.58599956,166.16,166.15,0.1]
[1762201086680,35.55375729,166.14,166.13,0.68640747]
[1762201086866,39.49970395,166.14,166.13,0.68640747]
[1762201087060,48.21876632,166.14,166.13,0.68640747]
[1762201087267,30.52298926,166.11,166.1,834.30144523]
[1762201087464,52.58953435,166.11,166.1,767.60126289]
[1762201087768,47.55876632,166.11,166.1,767.60126289]
[1762201088075,53.57887347,166.11,166.1,767.60126289]
[1762201088469,56.3250371,166.11,166.1,767.60126289]
[1762201088678,63.59673679,166.11,166.1,690.6585953]
[1762201088854,73.37366844,166.11,166.1,532.55189925]
[1762201089056,141.45366844,166.11,166.1,83.48137958]
[1762201089259,20.592,165.94,165.9,0.66]
[1762201089466,9.93098926,165.93,165.87,0.66]
[1762201089667,20.592,165.94,165.88,0.66]
[1762201089955,7.27169969,166.0,165.94,6.02627455]
[1762201089956,20.592,165.97,165.94,6.02627455]
[1762201090164,0.14216157,165.99,165.96,7.77693166]
[1762201090165,20.592,165.99,165.96,7.77693166]
[1762201090572,0.14216157,166.01,165.97,0.66]
[1762201090889,20.592,165.99,165.97,0.66]
[1762201091462,7.77693166,166.05,165.98,7.77693166]
[1762201091667,11.70225291,166.06,165.97,0.66]
[1762201091872,3.92532125,166.06,166.01,7.77693166]
[1762201092078,3.92532125,166.06,166.02,7.77693166]
[1762201092257,3.92532125,166.06,166.03,8.43693166]
[1762201092461,3.92532125,166.08,166.03,8.43693166]
[1762201092774,3.92532125,166.08,166.04,8.43693166]
[1762201092956,3.92532125,166.08,166.05,8.43693166]
[1762201093157,17.56575935,166.1,166.05,8.43693166]
[1762201093351,3.92532125,166.09,166.06,7.77693166]
[1762201093556,0.14216157,166.08,166.06,0.66]
[1762201093773,9.78882769,166.1,166.06,0.66]
[1762201093774,21.4910806,166.1,166.06,0.66]
[1762201093963,11.70225291,166.09,166.06,0.66]
[1762201094163,28.36893166,166.08,166.03,7.77693166]
[1762201094373,4.06748282,166.07,166.03,7.77693166]
[1762201094579,4.06748282,166.07,166.04,0.66]
[1762201094979,20.592,166.06,166.04,0.66]
[1762201095161,3.92532125,166.05,166.04,0.66]
[1762201095569,3.92532125,166.05,166.04,8.43693166]
[1762201095763,20.592,166.06,166.04,8.43693166]
[1762201096067,0.14216157,166.04,166.0,8.43693166]
[1762201096272,4.07029802,166.04,166.01,7.77693166]
[1762201096468,4.07029802,166.04,166.01,0.66]
[1762201096778,20.592,166.03,166.01,0.66]
[1762201097477,24.52056808,166.02,166.01,0.66]
[1762201097688,24.52056808,166.02,166.01,8.43693166]
[1762201097689,24.51932151,166.02,166.01,8.43693166]
[1762201098060,3.92732151,166.02,166.01,8.43693166]
[1762201098262,3.92732151,166.02,166.01,0.66]
[1762201098871,3.92732151,166.02,166.01,14.46063833]
[1762201098872,3.92761585,166.02,166.01,14.46063833]
[1762201099186,20.592,166.04,166.01,14.46063833]
[1762201099371,3.92782766,166.03,166.02,8.43693166]
[1762201100363,3.20782766,166.03,166.02,14.46030233]
[1762201100586,18.22575935,166.11,166.02,14.46030233]
[1762201100783,18.22575935,166.11,165.96,17.56575935]
[1762201100784,7.77693166,166.03,165.99,0.66]
[1762201100962,0.66,166.1,165.99,0.66]
[1762201100963,7.77693166,166.02,165.99,0.66]
[1762201101163,0.14216157,166.03,165.99,0.66]
[1762201101363,0.14216157,166.05,165.99,8.43693166]
[1762201101670,20.592,166.04,166.0,7.77693166]
[1762201101880,7.91909323,166.05,166.0,0.66]
[1762201102180,7.77693166,166.04,166.01,0.66]
[1762201102567,0.14216157,166.02,165.97,0.66]
[1762201102888,7.77693166,166.03,165.93,15.06570209]
[1762201102889,7.91909323,166.0,165.94,13.80320621]
[1762201103191,0.14216157,166.0,165.95,7.77693166]
[1762201103405,0.14216157,166.0,165.96,7.77693166]
[1762201103598,0.14216157,166.0,165.96,8.43693166]
[1762201103768,0.14216157,166.0,165.97,0.66]
[1762201104084,7.77693166,166.02,165.97,6.68511309]
[1762201104299,4.9107101,166.09,166.01,7.77693166]
[1762201104490,7.77693166,166.09,166.03,7.77693166]
[1762201104687,20.592,166.08,166.03,8.43693166]
[1762201104866,0.66,166.08,166.03,7.77693166]
[1762201105066,7.77693166,166.08,166.02,7.77693166]
[1762201105285,20.592,166.07,166.02,7.77693166]
[1762201105483,7.77693166,166.07,166.02,7.77693166]
[1762201105697,10.44882769,166.09,165.97,21.08807627]
[1762201105876,4.9107101,166.12,166.05,7.77693166]
[1762201106072,20.592,166.09,166.03,6.68293106]
[1762201106276,7.77693166,166.06,166.0,7.77693166]
[1762201106464,7.77693166,166.07,166.01,8.43693166]
[1762201106662,0.80216157,166.08,166.03,7.77693166]
[1762201107088,0.80216157,166.08,166.03,8.43693166]
[1762201107389,8.57909323,166.08,166.03,8.43693166]
[1762201108089,8.57909323,166.08,166.04,0.67]
[1762201108286,0.80216157,166.08,166.04,0.67]
[1762201108483,0.14216157,166.08,166.04,0.67]
[1762201108788,0.14216157,166.08,166.04,14.46951313]
[1762201108993,0.14216157,166.08,166.04,8.44693166]
[1762201109691,29.02732762,166.09,166.04,8.44693166]
[1762201110076,0.72,166.08,166.04,8.44693166]
[1762201110491,28.30732762,166.09,166.04,8.44693166]
[1762201110689,20.53039596,166.09,166.05,0.67]
[1762201111195,29.02732762,166.09,166.05,0.67]
[1762201111374,28.30732762,166.09,166.05,0.67]
[1762201111576,20.53039596,166.09,166.06,7.77693166]
[1762201111810,4.9107101,166.14,166.08,7.77693166]
[1762201111986,4.9107101,166.14,166.04,21.07909831]
[1762201111987,0.72,166.16,166.09,0.67]
[1762201112177,6.73763717,166.18,166.12,7.77693166]
[1762201112385,4.67127753,166.17,166.12,7.77693166]
[1762201112583,3.95127753,166.16,166.12,7.77693166]
[1762201112778,3.95127753,166.15,166.09,15.05128522]
[1762201113097,3.95127753,166.14,166.11,7.77693166]
[1762201113298,3.95127753,166.15,166.11,7.77693166]
[1762201113498,3.95127753,166.14,166.11,8.44693166]
[1762201113676,3.95127753,166.15,166.12,0.67]
[1762201113879,3.95127753,166.14,166.12,0.67]
[1762201114078,4.65127753,166.16,166.11,7.77693166]
[1762201114285,11.72820919,166.15,166.09,7.77693166]
[1762201114492,24.54327753,166.14,166.09,8.44693166]
[1762201114685,3.95127753,166.13,166.09,0.67]
[1762201115094,3.95127753,166.13,166.1,7.77693166]
[1762201115297,3.95127753,166.13,166.09,8.44693166]
[1762201115502,3.95127753,166.13,166.1,0.67]
[1762201115681,3.95127753,166.13,166.1,8.44693166]
[1762201116208,3.95127753,166.13,166.11,0.67]
[1762201116398,3.95127753,166.13,166.1,8.44693166]
[1762201116582,3.95127753,166.13,166.11,0.67]
[1762201116905,5.6107101,166.22,166.12,7.77693166]
[1762201117205,3.84636947,166.24,166.21,7.77693166]
[1762201117404,3.84636947,166.24,166.23,7.77693166]
[1762201117617,3.84636947,166.24,166.22,7.77693166]
[1762201117779,23.73836947,166.24,166.2,7.77693166]
[1762201118094,3.84636947,166.24,166.2,7.77693166]
[1762201118485,3.14636947,166.24,166.21,7.77693166]
[1762201118685,0.2,166.28,166.21,0.67]
[1762201118911,0.2,166.28,166.27,7.77693166]
[1762201119107,0.2,166.28,166.26,7.77693166]
[1762201119493,0.2,166.28,166.26,0.67]
[1762201120088,0.2,166.28,166.24,7.77693166]
[1762201120497,0.2,166.28,166.24,8.44693166]
[1762201121004,20.792,166.28,166.26,7.77693166]
[1762201121401,20.792,166.28,166.27,7.77693166]
[1762201121604,0.2,166.28,166.27,7.77693166]
[1762201121788,0.2,166.28,166.27,8.44693166]
[1762201122706,0.2,166.28,166.27,14.46124572]
[1762201122892,0.2,166.28,166.27,0.67]
[1762201123092,0.2,166.28,166.27,8.44693166]
[1762201123609,0.2,166.28,166.27,7.77693166]
[1762201124004,0.2,166.28,166.27,8.44693166]
[1762201124213,0.2,166.28,166.27,14.46124572]
[1762201124513,4.81344939,166.37,166.27,14.46124572]
[1762201124514,0.7,166.39,166.27,14.46124572]
[1762201124686,0.7,166.39,166.35,7.77693166]
[1762201124890,3.84343807,166.39,166.35,7.77693166]
[1762201125109,3.84343807,166.39,166.34,7.77693166]
[1762201125312,20.592,166.37,166.34,7.77693166]
[1762201125611,20.592,166.37,166.35,7.77693166]
[1762201125913,0.14216157,166.38,166.34,7.77693166]
[1762201126107,0.84216157,166.38,166.34,7.77693166]
[1762201126297,20.592,166.37,166.34,7.77693166]
[1762201127603,20.592,166.37,166.29,7.77693166]
[1762201127604,20.592,166.33,166.29,7.77693166]
[1762201127805,28.36893166,166.33,166.28,7.77693166]
[1762201128438,7.77693166,166.31,166.26,8.44693166]
[1762201128814,20.592,166.29,166.27,0.67]
[1762201129409,20.592,166.29,166.28,7.77693166]
[1762201129602,20.592,166.31,166.28,8.44693166]
[1762201129914,20.592,166.31,166.29,7.77693166]
[1762201130324,0.7,166.3,166.26,7.77693166]
[1762201130616,0.7,166.3,166.25,0.67]
[1762201130617,12.39602589,166.3,166.25,7.77693166]
[1762201130799,0.14216157,166.29,166.25,8.44693166]
[1762201130999,20.592,166.27,166.25,0.67]
[1762201131195,28.36893166,166.27,166.23,0.67]
[1762201131398,20.592,166.27,166.23,0.67]
[1762201131622,8.61909323,166.26,166.21,7.77693166]
[1762201131916,25.35066189,166.26,166.22,7.77693166]
[1762201132117,20.592,166.25,166.22,7.77693166]
[1762201132323,20.592,166.28,166.24,7.77693166]
[1762201132618,20.592,166.28,166.25,7.77693166]
[1762201133023,20.592,166.28,166.26,7.77693166]
[1762201133234,9.78882769,166.33,166.2,22.81828827]
[1762201133235,20.592,166.29,166.27,7.77693166]
[1762201133400,20.592,166.29,166.28,7.77693166]
[1762201133726,20.592,166.29,166.27,7.77693166]
[1762201133924,20.592,166.3,166.27,7.77693166]
[1762201134312,20.592,166.3,166.28,7.77693166]
[1762201134510,21.292,166.3,166.28,7.77693166]
[1762201134708,20.592,166.29,166.27,7.77693166]
[1762201135027,20.592,166.29,166.27,6.05673166]
[1762201135621,20.592,166.3,166.28,7.77693166]
[1762201135804,20.592,166.3,166.27,0.67]
[1762201135805,20.592,166.29,166.27,7.77693166]
[1762201136004,21.292,166.29,166.26,7.77693166]
[1762201136327,20.592,166.29,166.26,7.77693166]
[1762201137607,20.592,166.29,166.26,13.79157473]
[1762201137804,20.592,166.29,166.27,7.77693166]
[1762201138306,0.7,166.33,166.28,8.44693166]
[1762201138618,0.7,166.33,166.3,7.77693166]
[1762201138824,9.93098926,166.32,166.28,7.77693166]
[1762201139123,9.93098926,166.32,166.24,0.67]
[1762201139124,20.592,166.29,166.27,7.77693166]
[1762201139529,20.592,166.29,166.28,7.77693166]
[1762201140017,20.592,166.29,166.27,7.77693166]
[1762201140430,21.292,166.29,166.26,7.77693166]
[1762201140609,20.592,166.29,166.26,7.77693166]
[1762201140817,20.592,166.29,166.25,14.46196777]
[1762201141120,20.592,166.29,166.27,7.77693166]
[1762201142326,9.78882769,166.35,166.28,8.44693166]
[1762201142526,20.592,166.33,166.3,7.77693166]
[1762201142745,20.592,166.28,166.24,6.01535139]
[1762201143032,20.592,166.28,166.25,8.46693166]
[1762201143227,20.592,166.28,166.26,7.77693166]
[1762201143531,20.592,166.28,166.26,8.46693166]
[1762201144247,0.72,166.32,166.27,7.77693166]
[1762201144406,0.72,166.34,166.31,7.77693166]
[1762201144607,0.72,166.34,166.23,21.05507176]
[1762201144608,21.312,166.34,166.32,7.77693166]
[1762201144934,3.91482674,166.33,166.32,7.77693166]
[1762201145132,21.312,166.33,166.32,7.77693166]
[1762201145342,20.592,166.32,166.25,6.70492874]
[1762201145626,20.592,166.32,166.21,30.38082769]
[1762201145627,0.14216157,166.3,166.26,7.77693166]
[1762201145804,32.42591997,166.3,166.23,0.69]
[1762201146008,3.91482674,166.29,166.25,7.77693166]
[1762201146428,3.91482674,166.29,166.25,8.46693166]
[1762201146727,3.91482674,166.29,166.25,0.69]
[1762201146939,0.72,166.31,166.28,7.77693166]
[1762201147141,4.64082896,166.31,166.29,7.77693166]
[1762201147643,21.312,166.3,166.28,7.77693166]
[1762201147834,3.92082896,166.29,166.28,7.77693166]
[1762201148536,3.92082896,166.29,166.28,5.0245205]
[1762201148733,4.64082896,166.3,166.28,5.0245205]
[1762201148933,25.23282896,166.3,166.27,5.0245205]
[1762201149238,3.92082896,166.29,166.27,5.0245205]
[1762201149820,3.92082896,166.29,166.28,5.0245205]
[1762201150242,20.592,166.32,166.28,5.0245205]
[1762201150429,3.92082896,166.31,166.3,5.0245205]
[1762201150627,3.92082896,166.31,166.25,21.05236124]
[1762201150628,3.92082896,166.31,166.29,5.0245205]
[1762201150957,3.92082896,166.31,166.3,5.0245205]
[1762201153037,3.92082896,166.31,166.3,11.7277496]
[1762201153339,3.92082896,166.33,166.3,11.7277496]
[1762201153545,4.64082896,166.34,166.31,5.0245205]
[1762201153743,3.92082896,166.33,166.32,5.0245205]
[1762201154050,3.92082896,166.36,166.31,5.7145205]
[1762201154220,3.92082896,166.36,166.3,5.0245205]
[1762201154221,20.592,166.33,166.3,5.0245205]
[1762201154425,20.592,166.33,166.29,5.0245205]
[1762201154426,3.92082896,166.32,166.29,5.0245205]
[1762201154628,3.92082896,166.31,166.29,5.0245205]
[1762201154833,3.92082896,166.3,166.26,5.0245205]
[1762201155048,3.92082896,166.29,166.26,5.7145205]
[1762201155250,3.92082896,166.31,166.27,0.69]
[1762201155430,3.92082896,166.3,166.27,5.7145205]
[1762201155631,3.92082896,166.29,166.27,5.7145205]
[1762201155849,3.92082896,166.28,166.27,5.0245205]
[1762201156051,24.51282896,166.31,166.27,5.0245205]
[1762201156250,3.92082896,166.3,166.29,5.0245205]
[1762201157354,4.64082896,166.3,166.28,5.0245205]
[1762201157541,3.92082896,166.29,166.28,5.0245205]
[1762201161157,3.92082896,166.29,166.28,11.03847286]
[1762201161457,3.92082896,166.29,166.28,11.72847286]
[1762201162366,3.92082896,166.29,166.28,6.70395236]
[1762201162662,3.92082896,166.29,166.28,11.72847286]
[1762201163470,3.92082896,166.29,166.25,0.69]
[1762201163644,3.92082896,166.28,166.25,5.0245205]
[1762201163835,3.92082896,166.27,166.24,11.03991992]
[1762201164037,3.92082896,166.26,166.25,5.7145205]
[1762201165365,3.92082896,166.26,166.25,11.03955809]
[1762201165551,3.92082896,166.26,166.25,11.72955809]
[1762201168176,3.92082896,166.26,166.25,11.03955809]
[1762201168846,3.92082896,166.26,166.25,11.75955809]
[1762201169075,3.92082896,166.26,166.25,5.0245205]
[1762201169244,3.92082896,166.26,166.25,11.03955809]
[1762201169445,3.92082896,166.26,166.25,5.0245205]
[1762201169871,3.92082896,166.26,166.25,5.7445205]
[1762201170072,3.92082896,166.26,166.24,6.01535188]
[1762201170264,0.68,166.29,166.25,5.0245205]
[1762201170462,3.98617501,166.28,166.24,6.73535188]
[1762201170678,3.98617501,166.27,166.25,5.0245205]
[1762201170856,0.68,166.29,166.26,11.03913601]
[1762201171051,3.98618878,166.28,166.2,40.65792881]
[1762201171252,3.98618878,166.27,166.21,6.01648516]
[1762201171458,5.0245205,166.25,166.18,0.72]
[1762201171672,9.01070928,166.24,166.19,5.0245205]
[1762201171873,3.98618878,166.23,166.19,5.0245205]
[1762201172174,3.98618878,166.22,166.19,0.72]
[1762201172368,3.98618878,166.22,166.21,5.0245205]
[1762201172567,3.98618878,166.24,166.21,5.0245205]
[1762201172783,3.98618878,166.23,166.21,5.0245205]
[1762201172956,0.69,166.24,166.21,5.0245205]
[1762201172957,3.98618878,166.22,166.21,5.0245205]
[1762201173282,3.98618878,166.23,166.21,5.0245205]
[1762201173499,3.98618878,166.22,166.21,5.0245205]
[1762201173775,3.98618878,166.22,166.15,30.09175782]
[1762201173776,4.67618878,166.22,166.18,6.01745991]
[1762201174096,0.14216157,166.18,166.12,6.70974476]
[1762201174269,0.14216157,166.18,166.12,6.01974476]
[1762201174270,5.0245205,166.16,166.12,6.01974476]
[1762201174589,9.01070928,166.16,166.12,6.01974476]
[1762201174754,3.98618878,166.15,166.12,6.70974476]
[1762201174949,9.70070928,166.15,166.11,6.02002815]
[1762201175183,0.69,166.15,166.11,0.69]
[1762201175485,0.14216157,166.16,166.12,5.7145205]
[1762201175998,0.83216157,166.16,166.1,21.17155278]
[1762201176193,0.83216157,166.16,166.1,0.79]
[1762201176386,5.0245205,166.15,166.1,5.1245205]
[1762201176686,0.69,166.14,166.1,6.12044593]
[1762201176863,0.69,166.14,166.1,11.83496643]
[1762201177066,0.14216157,166.14,166.11,5.0245205]
[1762201177473,0.83216157,166.14,166.11,5.0245205]
[1762201177779,0.83216157,166.14,166.1,6.81044593]
[1762201177979,0.83216157,166.14,166.1,11.83496643]
[1762201178985,24.57818878,166.15,166.13,5.0245205]
[1762201179165,21.282,166.15,166.13,5.0245205]
[1762201180271,0.69,166.17,166.14,5.0245205]
[1762201180493,0.69,166.17,166.16,5.0245205]
[1762201181008,4.64668288,166.2,166.16,5.0245205]
[1762201181193,0.69,166.19,166.17,5.0245205]
[1762201181485,0.69,166.19,166.14,6.0190201]
[1762201181697,0.69,166.19,166.15,5.0245205]
[1762201181906,0.14216157,166.17,166.13,11.04380845]
[1762201182264,0.83216157,166.17,166.14,5.0245205]
[1762201183405,3.95668288,166.18,166.16,5.0245205]
[1762201183692,3.95668288,166.18,166.11,21.07037504]
[1762201183693,3.95668288,166.22,166.17,5.7145205]
[1762201183898,10.47882769,166.25,166.21,5.0245205]
[1762201184065,0.14216157,166.24,166.22,5.0245205]
[1762201184265,4.78884445,166.24,166.22,5.0245205]
[1762201184487,0.83216157,166.24,166.22,5.0245205]
[1762201184688,0.69,166.23,166.22,5.0245205]
[1762201185077,3.95668288,166.25,166.18,0.69]
[1762201185374,4.64668288,166.25,166.24,5.0245205]
[1762201185574,0.69,166.27,166.24,5.0245205]
[1762201185898,20.592,166.25,166.24,5.0245205]
[1762201186105,3.95668288,166.25,166.18,0.69]
[1762201186270,0.69,166.25,166.22,5.0245205]
[1762201186475,0.69,166.25,166.23,5.0245205]
[1762201187478,0.69,166.25,166.22,11.04043508]
[1762201188097,0.69,166.25,166.21,5.0245205]
[1762201188310,0.14216157,166.27,166.22,5.0245205]
[1762201188481,0.69,166.26,166.23,5.0245205]
[1762201189070,0.69,166.26,166.21,6.70648516]
[1762201189071,0.69,166.26,166.22,5.0245205]
[1762201189886,3.95668288,166.27,166.25,5.0245205]
[1762201190064,3.95668288,166.28,166.26,5.0245205]
[1762201190270,0.69,166.28,166.26,5.0245205]
[1762201190668,21.282,166.28,166.26,5.0245205]
[1762201190882,3.95668288,166.27,166.26,5.0245205]
[1762201191871,3.95668288,166.27,166.26,11.0391963]
[1762201192276,28.38357649,166.3,166.26,11.0391963]
[1762201192484,0.69,166.36,166.29,5.0245205]
[1762201192696,0.69,166.35,166.33,5.0245205]
[1762201193003,20.592,166.34,166.32,5.0245205]
[1762201193209,3.9604611,166.33,166.32,5.0245205]
[1762201193380,3.14395737,166.36,166.32,11.03702651]
[1762201193579,0.69,166.36,166.34,5.0245205]
[1762201193800,7.10423783,166.38,166.34,5.0245205]
[1762201194082,0.69,166.35,166.33,5.0245205]
[1762201194300,4.65074297,166.37,166.33,5.0245205]
[1762201194606,4.65074297,166.37,166.35,5.0245205]
[1762201194607,20.592,166.36,166.35,5.0245205]
[1762201194821,24.55274297,166.36,166.35,5.0245205]
[1762201195110,24.55274297,166.36,166.34,5.0245205]
[1762201195412,3.96074297,166.35,166.3,0.69]
[1762201195605,3.96074297,166.35,166.32,5.0245205]
[1762201196106,4.65074297,166.35,166.32,5.0245205]
[1762201196490,4.65074297,166.35,166.33,5.0245205]
[1762201196809,4.65074297,166.35,166.32,5.0245205]
[1762201196978,4.65074297,166.35,166.33,5.0245205]
[1762201197882,4.65074297,166.35,166.32,5.0245205]
[1762201199085,5.0245205,166.33,166.27,6.01431406]
[1762201199278,5.0245205,166.33,166.28,5.0245205]
[1762201199485,5.7145205,166.32,166.27,5.7145205]
[1762201199692,26.3065205,166.32,166.27,5.7145205]
[1762201199896,4.65074297,166.31,166.27,5.0245205]
[1762201200101,4.65074297,166.31,166.26,5.0245205]
[1762201200302,4.65074297,166.31,166.28,5.0245205]
[1762201200303,20.592,166.3,166.28,5.0245205]
[1762201200601,3.96074297,166.29,166.26,5.0245205]
[1762201200785,4.65074297,166.29,166.26,5.0245205]
[1762201201102,0.69,166.28,166.26,5.0245205]
[1762201201304,0.69,166.28,166.23,11.73024723]
[1762201201926,3.96074297,166.29,166.27,5.0245205]
[1762201202095,0.69,166.27,166.2,0.69]
[1762201202400,9.67526347,166.27,166.22,5.0245205]
[1762201202777,9.67526347,166.27,166.22,5.7445205]
[1762201203001,4.65074297,166.27,166.23,5.0245205]
[1762201203492,3.96074297,166.27,166.26,5.0245205]
[1762201203696,0.14216157,166.29,166.26,5.0245205]
[1762201204003,4.10290454,166.29,166.26,5.0245205]
[1762201204213,3.96074297,166.29,166.27,5.0245205]
[1762201204387,3.96074297,166.3,166.28,5.0245205]
[1762201204707,9.66526347,166.33,166.28,5.0245205]
[1762201204910,5.0245205,166.3,166.25,6.01503759]
[1762201205092,20.592,166.3,166.26,5.0245205]
[1762201205293,4.64074297,166.29,166.27,5.0245205]
[1762201205710,4.64074297,166.29,166.26,5.0245205]
[1762201206095,3.96074297,166.29,166.27,5.0245205]
[1762201206408,3.96074297,166.29,166.2,25.6165205]
[1762201206409,26.43868207,166.28,166.22,5.0245205]
[1762201206614,9.66526347,166.27,166.22,5.0245205]
[1762201206914,4.64074297,166.27,166.23,5.0245205]
[1762201207093,0.68,166.26,166.22,5.0245205]
[1762201207297,0.68,166.26,166.18,6.01745241]
[1762201207610,5.0245205,166.2,166.15,5.0245205]
[1762201207790,5.0245205,166.2,166.15,11.04317833]
[1762201208111,5.0245205,166.18,166.13,5.0245205]
[1762201208292,5.0245205,166.18,166.13,5.7445205]
[1762201208492,0.82216157,166.19,166.15,5.0245205]
[1762201208992,3.96074297,166.2,166.17,5.0245205]
[1762201209308,3.96074297,166.2,166.16,5.0245205]
[1762201209505,3.96074297,166.2,166.14,0.72]
[1762201209808,0.82216157,166.19,166.12,0.72]
[1762201210010,5.0245205,166.17,166.11,5.0245205]
[1762201210213,0.14216157,166.16,166.11,5.0245205]
[1762201210389,0.14216157,166.16,166.12,7.76760788]
[1762201210591,3.96074297,166.18,166.14,7.76760788]
[1762201210796,3.96074297,166.18,166.15,7.76760788]
[1762201211197,4.64074297,166.18,166.15,7.76760788]
[1762201211510,0.68,166.17,166.15,7.76760788]